[Event "FIDE WSCC 65 2022"]
[Site "Assisi"]
[Date "2022.11.25"]
[Round "10.1"]
[White "Legky, Nikolay A"]
[Black "Nunn, John D M"]
[Result "1/2-1/2"]
[ECO "E97"]
[WhiteElo "2350"]
[BlackElo "2580"]
[Annotator "TA"]
[PlyCount "36"]
[EventDate "2022.11.14"]
[EventType "swiss"]
[EventCountry "ITA"]
[SourceTitle "playchess.com"]
[Source "ChessBase"]
[SourceQuality "1"]
[TimeControl "40/5400+30:1800+30"]

{[%evp 18,36,21,20,13,10,12,14,14,5,8,10,16,0,24,14,8,0,0,0,7]} 1. d4 {[%emt 0:00:03]} Nf6 {[%emt 0:00:12]} 2. c4 {[%emt 0:00:04]} g6 {[%emt 0:00:07]} 3. Nc3 {[%emt 0:00:05]} Bg7 {[%emt 0:00:05]} 4. e4 {[%emt 0:00:05]} d6 {[%emt 0:00:05]} 5. Be2 {[%emt 0:00:05]} O-O {[%emt 0:00:08]} 6. Nf3 {[%emt 0:00:03]} e5 {[%emt 0:00:07]} 7. O-O {[%emt 0:00:06]} Nc6 {[%emt 0:00:07][%cal Bb8c6,Bc6d4,Bd4c2][%mdl 32]} 8. dxe5 {[%emt 0:00:05]} dxe5 {[%emt 0:00:27]} 9. Bg5 {[%emt 0:00:04]} Qxd1 {[%emt 0:09:13]} 10. Raxd1 {[%emt 0:00:06]} Bg4 {[%emt 0:00:10] E97: King's Indian: Classical Main Line (6...e5 7 0-0 Nc6): 8 Be3 and 8 d5 Ne7, not 9 Ne1.} 11. h3 {[%emt 0:03:05]} Bxf3 {[%emt 0:00:30]} 12. Bxf3 {[%emt 0:00:04]} ({Don't play} 12. gxf3 Nd4 $15) 12... Nd4 {[%emt 0:03:11]} 13. Nd5 {[%emt 0:00:05]} Nxd5 {[%emt 0:01:17]} 14. cxd5 {[%emt 0:00:05]} f5 {[%emt 0:08:22] [#]} 15. Rfe1 $146 {[%emt 0:01:21]} ({Predecessor:} 15. Be3 Nxf3+ 16. gxf3 Rf7 17. Rd3 Bf8 18. Rc1 Bd6 19. Kg2 Kf8 20. a3 a5 21. Rdc3 {½-½ (42) Baraeva,M (2208)-Baraeva,I (2198) Nebug 2016}) 15... Rae8 {[%emt 0:03:13]} 16. Bd2 {[%emt 0:07:03]} Nc2 {[%emt 0:06:55] The position is equal.} 17. Re2 {[%emt 0:00:20]} Nd4 {[%emt 0:00:10]} 18. Ree1 {[%emt 0:00:07]} Nc2 {[%emt 1:05:11] Not much happened in this game.   Weighted Error Value: White=0.06 (flawless) /Black=0.03 (flawless)} 1/2-1/2

[Event "FIDE WSCC 65 2022"]
[Site "Assisi"]
[Date "2022.11.25"]
[Round "10.2"]
[White "Kristiansen, Jens"]
[Black "Jansa, Vlastimil"]
[Result "1-0"]
[ECO "B20"]
[WhiteElo "2353"]
[BlackElo "2390"]
[Annotator "TA"]
[PlyCount "85"]
[EventDate "2022.11.14"]
[EventType "swiss"]
[EventCountry "ITA"]
[SourceTitle "playchess.com"]
[Source "ChessBase"]
[SourceQuality "1"]
[TimeControl "40/5400+30:1800+30"]

{[%evp 18,85,19,19,8,11,38,14,110,97,107,106,102,104,148,135,152,149,129,116,141,145,184,172,177,175,141,149,135,140,150,177,184,152,210,196,182,141,147,145,167,166,166,166,166,145,141,141,143,143,164,188,329,314,284,139,142,139,243,255,329,319,389,359,458,439,423,414,352,337]} 1. e4 {[%emt 0:00:04]} c5 {[%emt 0:00:13]} 2. d3 {[%emt 0:00:09]} Nc6 {[%emt 0:00:50]} 3. g3 {[%emt 0:00:10]} g6 {[%emt 0:00:45]} 4. Bg2 {[%emt 0:00:09]} Bg7 {[%emt 0:00:07]} 5. f4 {[%emt 0:00:24]} d6 {[%emt 0:01:27]} 6. Nf3 {[%emt 0:00:12]} e6 {[%emt 0:00:52]} 7. O-O {[%emt 0:00:10]} Nge7 {[%emt 0:01:02]} 8. c3 {[%emt 0:00:12]} O-O {[%emt 0:00:46]} 9. Be3 {[%emt 0:00:11][%cal Bc1e3,Be3f2,Bf2c5][%mdl 32]} b6 {[%emt 0:01:02]} 10. Re1 {[%emt 0:04:25]} Bb7 {[%emt 0:02:42] B20: Sicilian: Unusual White 2nd moves.} 11. d4 {[%emt 0:05:03]} Rc8 {[%emt 0:03:49]} 12. Bf2 {[%emt 0:08:39] [#]} Qd7 $146 {[%emt 0:05:51] [#]} (12... cxd4 $11 13. cxd4 d5) ({Predecessor:} 12... Na5 13. Nbd2 cxd4 14. cxd4 d5 15. e5 Nc4 16. Rb1 Nxd2 17. Qxd2 Qc7 18. g4 Rfe8 {1-0 (33) Kosic,D (2511)-Rohit,G (2457) Budapest 2008}) 13. dxc5 $1 $16 {[%emt 0:01:27]} bxc5 {[%emt 0:06:58]} 14. Bxc5 {[%emt 0:00:14]} Rfd8 {[%emt 0:30:27]} 15. Bf2 {[%emt 0:00:33]} Na5 {[%emt 0:03:02]} 16. Na3 {[%emt 0:03:01]} (16. Bxa7 Nc4 $16) 16... Nc4 {[%emt 0:02:46]} 17. Nxc4 {[%emt 0:00:26]} ({And not} 17. Bxa7 Nxa3 18. Bb6 Nc4 19. Bxd8 Qxd8 $17) 17... Rxc4 {[%emt 0:00:05]} 18. Nd2 {[%emt 0:06:08]} (18. Bxa7 $6 Rxe4 19. Bf2 Ra4 $11) 18... Ra4 {[%emt 0:00:49]} 19. Nb3 {[%emt 0:01:38]} f5 {[%emt 0:06:19][%cal Rf5e4]} 20. Nd4 {[%emt 0:03:57][%cal Od4e6]} Bxd4 {[%emt 0:07:30]} 21. Bxd4 {[%emt 0:00:31]} ({Don't play} 21. cxd4 $6 Rb4 $16) 21... Bxe4 {[%emt 0:04:04]} 22. Bxe4 {[%emt 0:00:14]} fxe4 {[%emt 0:00:05]} 23. b3 {[%emt 0:01:31] Inhibits d5. White is more active.} Ra5 {[%emt 0:02:02]} 24. Rxe4 {[%emt 0:00:37]} Nc6 {[%emt 0:07:46]} 25. Bf2 {[%emt 0:02:03]} d5 {[%emt 0:02:21] Inhibits b4.} (25... Rf5 $16 26. Qe2 e5) 26. Re2 {[%emt 0:05:33]} d4 {[%emt 0:01:11]} 27. Bxd4 {[%emt 0:03:21]} Rd5 {[%emt 0:02:21]} 28. Re4 {[%emt 0:03:13]} Nxd4 {[%emt 0:00:59]} 29. Rxd4 {[%emt 0:00:13]} Rxd4 {[%emt 0:00:09]} 30. Qxd4 {[%emt 0:00:10]} ({But not} 30. cxd4 Qxd4+ 31. Qxd4 Rxd4 $16) 30... Qxd4+ {[%emt 0:00:09]} 31. cxd4 {[%emt 0:00:03]} Rxd4 {[%emt 0:00:36][%mdl 4096] Endgame KR-KR} 32. Rc1 {[%emt 0:00:39]} a5 {[%emt 0:02:39]} 33. Rc2 {[%emt 0:00:47]} h5 {[%emt 0:03:35]} 34. Kf2 {[%emt 0:01:55] And now Ke3 would win.} Kf7 {[%emt 0:00:33]} (34... Rd5 $142 35. Ke3 Kf7) 35. Ke3 $18 {[%emt 0:00:13]} Rd5 {[%emt 0:00:30]} 36. Rd2 {[%emt 0:04:58]} (36. h4 $18 {has better winning chances.}) 36... Rb5 {[%emt 0:00:41]} 37. Ke4 {[%emt 0:02:53] Threatens to win with h4.} Kf6 {[%emt 0:00:33] [#]} (37... g5 $16 38. Rd7+ Kf6 39. fxg5+ Kxg5 40. Rg7+ Kf6) 38. h4 $1 {[%emt 0:01:41]} Ke7 {[%emt 0:00:40]} 39. Rd3 {[%emt 0:01:20]} Kf6 {[%emt 0:00:36]} 40. Kd4 {[%emt 0:00:54]} Kf5 {[%emt 0:00:32]} 41. Kc4 {[%emt 0:30:50]} Rb4+ {[%emt 0:04:57]} 42. Kc5 {[%emt 0:00:00]} Ke4 {[%emt 0:01:05]} 43. Rc3 {[%emt 0:00:00] Weighted Error Value: White=0.08 (flawless) /Black=0.28 (precise)} 1-0

[Event "FIDE WSCC 65 2022"]
[Site "Assisi"]
[Date "2022.11.25"]
[Round "10.3"]
[White "Birnboim, Nathan"]
[Black "Knaak, Rainer"]
[Result "1-0"]
[ECO "C28"]
[WhiteElo "2361"]
[BlackElo "2457"]
[Annotator "TA"]
[PlyCount "57"]
[EventDate "2022.11.14"]
[EventType "swiss"]
[EventCountry "ITA"]
[SourceTitle "playchess.com"]
[Source "ChessBase"]
[SourceQuality "1"]
[TimeControl "40/5400+30:1800+30"]

{[%evp 11,57,11,15,6,26,13,17,0,13,15,51,22,65,61,70,33,106,100,112,70,121,121,141,134,136,114,269,280,274,246,302,316,405,377,509,504,500,478,469,293,387,389,410,373,432,459,573,453]} 1. e4 {[%emt 0:00:07]} e5 {[%emt 0:00:28]} 2. Bc4 {[%emt 0:00:15]} Nf6 {[%emt 0:00:24]} 3. d3 {[%emt 0:00:19]} Nc6 {[%emt 0:01:34]} 4. Nc3 {[%emt 0:00:20]} Na5 {[%emt 0:01:15]} 5. Nge2 {[%emt 0:00:22]} Nxc4 {[%emt 0:02:21]} 6. dxc4 {[%emt 0:00:09]} d6 {[%emt 0:00:24]} 7. O-O {[%emt 0:01:14] C28: Vienna Game: 2...Nf6 3 Bc4 Nc6.} c6 {[%emt 0:02:24]} 8. Qd3 {[%emt 0:05:13]} Be7 {[%emt 0:03:05]} 9. Ng3 {[%emt 0:10:49] [#] The position is equal.} g6 $146 {[%emt 0:09:26]} ({Predecessor:} 9... O-O 10. Bg5 Ne8 11. Be3 Bg5 12. Rad1 Bg4 13. Rd2 Bxe3 14. fxe3 Qb6 15. Nf5 Bxf5 16. exf5 {1-0 (45) Finegold,B (2494)-Chen,H (2297) Wheeling 2011}) 10. h3 {[%emt 0:02:06]} h6 {[%emt 0:07:04]} 11. f4 {[%emt 0:04:15][%cal Bf2f4,Bf4f5][%mdl 32]} Be6 {[%emt 0:10:28]} 12. f5 {[%emt 0:04:03]} Bd7 {[%emt 0:00:08]} 13. Be3 {[%emt 0:01:30]} (13. a4 $5) 13... g5 {[%emt 0:04:08]} (13... h5 $1 $14) 14. a4 $16 {[%emt 0:12:58]} a5 {[%emt 0:04:09]} 15. Ra3 {[%emt 0:12:51][%cal Ba1a3,Ba3b3,Bb3b7][%mdl 32]} Rg8 {[%emt 0:09:15]} ({Black should try} 15... d5 $14 16. exd5 Bxa3 17. bxa3 cxd5) 16. Rb3 {[%emt 0:01:16]} h5 {[%emt 0:01:20]} 17. Qe2 {[%emt 0:00:40] White has more active pieces. The black rooks are badly placed.} g4 {[%emt 0:08:43]} 18. h4 {[%emt 0:01:15]} (18. Rxb7 gxh3 19. Qf3 (19. Nxh5 $2 Rxg2+ $19) 19... Rb8 20. Rxb8 Qxb8 21. Nxh5 Rxg2+ 22. Kh1 Qxb2 23. Qxh3 (23. Rb1 $2 Qxc3 24. Qxh3 Rg5 $19) 23... Rxc2 24. Ng7+ (24. Rb1 Qxc3 25. Ng7+ Kd8 $11) 24... Kd8 25. Qh8+ Kc7 $11) 18... Nh7 $2 {[%emt 0:01:14] [#] This move loses the game for Black.} (18... Qc7 $16) 19. Nxh5 $18 {[%emt 0:10:50]} ({Don't play} 19. Rxb7 $6 Bxh4 20. Nxh5 Bc8 $18) 19... Bxh4 {[%emt 0:00:07]} 20. Rxb7 {[%emt 0:07:57] Qd3 is the strong threat.} Nf6 {[%emt 0:02:58]} 21. Nxf6+ {[%emt 0:00:18]} ({Not} 21. Bb6 Qc8 22. Nxf6+ Bxf6 $16) 21... Qxf6 {[%emt 0:00:11]} 22. Qd2 {[%emt 0:02:49]} Bg5 {[%emt 0:12:47]} 23. Bxg5 {[%emt 0:00:40]} Qxg5 {[%emt 0:01:14]} 24. Qxg5 {[%emt 0:00:07]} ({Stronger than} 24. Qxd6 Qe3+ 25. Rf2 Qe1+ 26. Rf1 Qe3+ 27. Rf2 Qe1+ 28. Rf1 Qe3+ $11) 24... Rxg5 {[%emt 0:00:04]} 25. Kf2 {[%emt 0:01:05] And now Rd1 would win.} O-O-O {[%emt 0:00:52]} 26. Ra7 {[%emt 0:01:34]} Kb8 {[%emt 0:08:38]} 27. Rxa5 {[%emt 0:00:06]} g3+ {[%emt 0:00:14]} 28. Ke3 {[%emt 0:03:38]} Kb7 {[%emt 0:01:09]} 29. Rh1 {[%emt 0:03:26] Weighted Error Value: White=0.15 (very precise) /Black=0.48} 1-0

[Event "FIDE WSCC 65 2022"]
[Site "Assisi"]
[Date "2022.11.25"]
[Round "10.4"]
[White "Fernandez Garcia, Jose Luis"]
[Black "Werner, Clemens"]
[Result "1-0"]
[ECO "B15"]
[WhiteElo "2358"]
[BlackElo "2236"]
[Annotator "TA"]
[PlyCount "76"]
[EventDate "2022.11.14"]
[EventType "swiss"]
[EventCountry "ITA"]
[SourceTitle "playchess.com"]
[Source "ChessBase"]
[SourceQuality "1"]
[TimeControl "40/5400+30:1800+30"]

{[%evp 17,76,15,16,18,38,23,44,45,46,43,81,81,85,86,70,45,45,51,52,0,0,0,0,0,49,59,108,117,135,135,119,90,105,98,145,145,148,150,142,145,139,137,149,139,143,141,143,136,144,143,146,130,120,104,139,116,94,106,149,140,112]} 1. e4 {[%emt 0:02:19]} c6 {[%emt 0:00:10]} 2. d4 {[%emt 0:00:08]} d5 {[%emt 0:00:12]} 3. Nd2 {[%emt 0:00:07]} dxe4 {[%emt 0:00:24]} 4. Nxe4 {[%emt 0:00:09]} Nf6 {[%emt 0:00:14]} 5. Nxf6+ {[%emt 0:00:12]} exf6 {[%emt 0:00:07]} 6. Bc4 {[%emt 0:00:09][%cal Bf1c4,Bc4d3,Bd3e4][%mdl 32]} Bd6 {[%emt 0:01:49]} 7. Qe2+ {[%emt 0:00:29]} Qe7 {[%emt 0:00:27]} 8. Qxe7+ {[%emt 0:00:33]} Kxe7 {[%emt 0:00:09]} 9. Ne2 {[%emt 0:01:18]} Be6 {[%emt 0:00:49]} 10. Bd3 {[%emt 0:03:09] B15: Caro-Kann: 3 Nc3: 3...g6 and 3...dxe4 4 Nxe4 Nf6 5 Nxf6+ exf6.} Nd7 {[%emt 0:08:50]} 11. Bf4 {[%emt 0:01:11] [#]} c5 $146 {[%emt 0:05:26]} ({Predecessor:} 11... Nb6 12. O-O-O Rad8 13. Bxd6+ Rxd6 14. Rhe1 f5 15. b3 Kf6 16. c4 Nc8 17. Kc2 Rhd8 {1-0 (69) Lintchevski,D (2570)-Shimanov,A (2581) St Petersburg 2021}) 12. Bxd6+ {[%emt 0:04:00] White is slightly better.} Kxd6 {[%emt 0:00:31]} 13. O-O-O {[%emt 0:00:06][%cal Od4d5]} Kc7 {[%emt 0:12:25]} 14. Rhe1 {[%emt 0:09:41]} c4 {[%emt 0:15:08]} 15. Be4 {[%emt 0:01:23]} Rae8 {[%emt 0:01:40]} 16. d5 {[%emt 0:13:06]} Bg4 {[%emt 0:01:57]} 17. f3 {[%emt 0:00:51]} Nc5 $1 {[%emt 0:02:37]} 18. d6+ {[%emt 0:00:22]} (18. Rd4 $14) 18... Kd7 $11 {[%emt 0:01:12]} 19. Bxb7 {[%emt 0:06:42]} Nxb7 {[%emt 0:00:43]} 20. fxg4 {[%emt 0:00:07]} Re6 {[%emt 0:10:31]} ({But not} 20... Nxd6 21. Rd2 $16) (20... h5 $1 $11) 21. Ng3 $36 {[%emt 0:01:02][%mdl 2048] White fights for an advantage.} (21. Nd4 {simplifies} Rxe1 22. Rxe1 Nxd6 23. Re3) 21... Rhe8 {[%emt 0:06:53] [#]} (21... Rxe1 $14 {feels stronger.} 22. Rxe1 Nxd6) 22. Rf1 $1 $16 {[%emt 0:02:29]} g6 {[%emt 0:01:38] [#] Inhibits Nf5.} 23. Rf4 $1 {[%emt 0:00:23]} c3 {[%emt 0:01:32]} 24. bxc3 {[%emt 0:00:48]} Nxd6 {[%emt 0:00:22]} 25. Ra4 {[%emt 0:01:02]} Ra8 {[%emt 0:01:21]} ({Better is} 25... Kc6) 26. Ne4 {[%emt 0:03:55] White is more active.} Ke7 {[%emt 0:01:45]} 27. Nxd6 {[%emt 0:10:14]} Rxd6 {[%emt 0:00:06]} 28. Rxd6 {[%emt 0:00:02]} Kxd6 {[%emt 0:00:07][%mdl 4096] Endgame KR-KR} 29. Ra5 {[%emt 0:00:02]} a6 {[%emt 0:02:48]} 30. Kd2 {[%emt 0:00:40]} Kc6 {[%emt 0:00:10]} 31. c4 {[%emt 0:00:37]} Kb6 {[%emt 0:02:11]} 32. Rd5 {[%emt 0:01:01]} Kc6 {[%emt 0:00:15] Prevents Rd7.} 33. Rd3 {[%emt 0:01:34]} Re8 {[%emt 0:00:37]} 34. Re3 {[%emt 0:06:35]} Re6 {[%emt 0:00:23]} 35. Ra3 {[%emt 0:10:18]} Kb6 {[%emt 0:02:50]} 36. Rd3 {[%emt 0:02:12]} Kc5 {[%emt 0:02:18]} 37. Rd7 {[%emt 0:00:50]} Kxc4 {[%emt 0:05:04]} 38. Rxf7 {[%emt 0:00:35]} Rd6+ {[%emt 0:03:58] Weighted Error Value: White=0.08 (flawless) /Black=0.15 (very precise)} 1-0

[Event "FIDE WSCC 65 2022"]
[Site "Assisi"]
[Date "2022.11.25"]
[Round "10.5"]
[White "Hebert, Jean"]
[Black "Pomes Marcet, Joan"]
[Result "1/2-1/2"]
[ECO "D17"]
[WhiteElo "2333"]
[BlackElo "2197"]
[Annotator "TA"]
[PlyCount "64"]
[EventDate "2022.11.14"]
[EventType "swiss"]
[EventCountry "ITA"]
[SourceTitle "playchess.com"]
[Source "ChessBase"]
[SourceQuality "1"]
[TimeControl "40/5400+30:1800+30"]

{[%evp 15,64,29,22,15,20,-46,52,54,30,27,58,42,106,83,88,75,143,79,75,11,26,40,39,-10,0,0,33,31,31,33,25,33,40,47,54,52,53,31,51,49,59,32,69,29,33,25,26,26,26,26,37]} 1. Nf3 {[%emt 0:00:10]} d5 {[%emt 0:00:18]} 2. c4 {[%emt 0:00:45]} c6 {[%emt 0:00:20]} 3. d4 {[%emt 0:00:24]} Nf6 {[%emt 0:00:17]} 4. Nc3 {[%emt 0:00:33]} dxc4 {[%emt 0:00:22]} 5. a4 {[%emt 0:00:16]} Bf5 {[%emt 0:00:28]} 6. Ne5 {[%emt 0:03:06]} Nbd7 {[%emt 0:00:39]} 7. Nxc4 {[%emt 0:00:09]} Nb6 {[%emt 0:01:26] is cutting edge theory.} 8. Ne5 {[%emt 0:03:21]} a5 {[%emt 0:00:39]} 9. f3 {[%emt 0:06:03] D17: Slav Defence: 5 a4 Bf5: Lines with 6 Nh4 and 6 Ne5.} Nfd7 {[%emt 0:04:55]} 10. Nd3 {[%emt 0:11:06]} (10. Nxd7 $11 Nxd7 11. e4) 10... e6 {[%emt 0:10:38]} (10... Bxd3 $15 11. Qxd3 e5) 11. e4 $14 {[%emt 0:01:46] White is slightly better.} Bg6 {[%emt 0:00:07]} 12. Be3 {[%emt 0:02:37]} Bd6 {[%emt 0:12:08]} 13. Qb3 {[%emt 0:03:30]} Qc7 {[%emt 0:10:52]} (13... O-O $14) 14. g3 {[%emt 0:16:59]} O-O {[%emt 0:06:16]} 15. Rc1 {[%emt 0:01:49][%cal Oc3b5] [#]} Rae8 $146 {[%emt 0:07:48] [#]} (15... Qd8 $142) ({Predecessor:} 15... Qb8 16. Bg2 Bc7 17. O-O Kh8 18. Rfd1 Nc8 19. Bf4 Nd6 20. Kh1 Re8 21. Bh3 f5 {½-½ (63) Sanchez Lopez,M (1799)-Rodriguez Diaz,A (1979) Madrid 2012}) 16. Bg2 {[%emt 0:03:44]} ({White should play} 16. Nb5 $1 {[%cal Rb5c7][%mdl 512]} Qb8 17. Nxd6 Qxd6 18. Bg2) 16... Nd5 $16 {[%emt 0:08:07] [#]} 17. Bf2 {[%emt 0:02:14]} ({Better is} 17. Nb5 $1 $16 {[%cal Rb5c7]} Qb6 18. Nc5 Nxe3 19. Nxd6 (19. Qxe3 Bxc5 20. dxc5 Nxc5 $14) 19... Nxg2+ 20. Kf2 Qxb3 21. Nxb3) 17... Qb6 {[%emt 0:03:24]} (17... Nb4 $5 18. Nxb4 Bxb4 $11) 18. Qxb6 {[%emt 0:07:33]} N7xb6 {[%emt 0:02:04]} 19. b3 {[%emt 0:02:46]} (19. Na2 $14 {is more appropriate.}) 19... Nxc3 {[%emt 0:09:40]} 20. Rxc3 {[%emt 0:00:23][%cal Od4d5]} Nd7 {[%emt 0:00:58] Inhibits d5.} (20... f5 $5 {[%cal Rf5e4]}) 21. O-O {[%emt 0:01:54]} Rd8 {[%emt 0:03:37]} 22. Rd1 {[%emt 0:07:47]} Rfe8 {[%emt 0:00:29]} 23. Rcc1 {[%emt 0:05:19]} Ba3 {[%emt 0:01:46]} 24. Ra1 {[%emt 0:00:43]} Bf8 {[%emt 0:00:08]} 25. Nf4 {[%emt 0:03:53]} Bb4 {[%emt 0:00:43]} 26. h4 {[%emt 0:00:37] Threatens to win with h5.} f6 {[%emt 0:00:18]} 27. Nxg6 {[%emt 0:00:40]} hxg6 {[%emt 0:00:05]} 28. Bf1 {[%emt 0:00:50]} (28. Rac1 $5 {[%cal Rd4d5]}) 28... e5 {[%emt 0:00:56]} 29. Kg2 {[%emt 0:02:09]} Bc3 {[%emt 0:01:55]} 30. Rac1 {[%emt 0:01:47]} Bxd4 {[%emt 0:00:47] White has an edge.} 31. Bxd4 {[%emt 0:00:10]} exd4 {[%emt 0:00:08]} 32. Rxd4 {[%emt 0:00:52] And now Rcd1 would win.} Kf8 {[%emt 0:00:35] Weighted Error Value: White=0.19 (very precise) /Black=0.21 (precise)} 1/2-1/2

[Event "FIDE WSCC 65 2022"]
[Site "Assisi"]
[Date "2022.11.25"]
[Round "10.6"]
[White "Bogdanov, Valentin"]
[Black "Maryasin, Boris"]
[Result "1-0"]
[ECO "D07"]
[WhiteElo "2323"]
[BlackElo "2258"]
[Annotator "TA"]
[PlyCount "120"]
[EventDate "2022.11.14"]
[EventType "swiss"]
[EventCountry "ITA"]
[SourceTitle "playchess.com"]
[Source "ChessBase"]
[SourceQuality "1"]
[TimeControl "40/5400+30:1800+30"]

{[%evp 11,120,27,25,22,19,20,27,36,36,28,18,37,36,32,41,29,77,88,103,81,82,72,171,164,149,78,72,71,125,131,125,125,125,125,119,124,118,115,119,58,57,54,58,35,87,61,144,144,129,133,125,120,349,356,338,320,305,279,680,661,656,616,602,539,606,493,1452,1197,992,798,4086,3640,29964,29964,29955,29959,29951,10844,29971,29971,29973,29974,29976,29977,29979,29980,29980,29969,29969,29971,29971,29972,29973,29974,29974,29975,29975,29976,29981,29978,29977,29978,29981,29980,29980,29980,29983,29981,29988,29986,29986]} 1. d4 {[%emt 0:00:04]} d5 {[%emt 0:00:19]} 2. c4 {[%emt 0:00:09]} dxc4 {[%emt 0:00:09]} 3. e4 {[%emt 0:00:25]} Nc6 {[%emt 0:00:16]} 4. Nf3 {[%emt 0:00:09]} Bg4 {[%emt 0:00:15]} 5. d5 {[%emt 0:00:11]} Ne5 {[%emt 0:00:09]} 6. Nc3 {[%emt 0:00:25]} Nf6 {[%emt 0:00:27]} 7. Be3 {[%emt 0:00:26] D07: Queen's Gambit: Chigorin Defence.} a6 {[%emt 0:00:43]} 8. h3 {[%emt 0:01:14] [#] Prevents e6.} Nxf3+ $146 {[%emt 0:07:03]} ({Predecessor:} 8... Bxf3 9. gxf3 e6 10. f4 Nd3+ 11. Bxd3 cxd3 12. dxe6 fxe6 13. Qb3 Qc8 14. e5 Nh5 {1-0 (51) Wojtaszek,R (2694)-Timofeev,A (2594) Tornelo INT 2021}) 9. gxf3 {[%emt 0:00:50] White has an edge.} Bh5 {[%emt 0:01:26]} 10. Bxc4 {[%emt 0:04:12]} e5 {[%emt 0:00:22]} 11. dxe6 {[%emt 0:06:01]} Qxd1+ {[%emt 0:02:28]} 12. Rxd1 {[%emt 0:00:02] Strongly threatening e5.} fxe6 {[%emt 0:00:23]} 13. Ke2 {[%emt 0:04:19]} e5 {[%emt 0:02:42]} (13... Bb4 $11) 14. Rhg1 $1 $16 {[%emt 0:06:35]} g6 {[%emt 0:06:34]} 15. Bg5 $36 {[%emt 0:10:52][%mdl 2048] White is really pushing.} (15. Nd5 {simplifies} Nxd5 16. Bxd5 Rb8 17. Rd3) 15... Be7 {[%emt 0:02:13]} 16. Be6 {[%emt 0:02:00]} h6 {[%emt 0:01:22]} (16... c6 $16 {might work better.}) 17. Bxf6 $18 {[%emt 0:05:21]} Bxf6 {[%emt 0:00:09]} 18. Nd5 {[%emt 0:08:20]} (18. Rd7 $142) 18... Bd8 $16 {[%emt 0:00:18]} 19. Ne3 {[%emt 0:00:35]} Ke7 {[%emt 0:21:20]} (19... Bg5 $142) 20. Bg4 {[%emt 0:08:36] White has more active pieces. The black rooks are badly placed.} Bxg4 {[%emt 0:00:31]} 21. Nxg4 {[%emt 0:00:36]} (21. fxg4 $6 Ke6 $11) (21. Rxg4 $6 g5 $14) (21. hxg4 $6 Ke6 $11) 21... Ke6 {[%emt 0:00:33]} 22. Rd5 {[%emt 0:02:22]} Bf6 {[%emt 0:00:14] [#]} 23. Nxf6 $1 {[%emt 0:00:22]} Kxf6 {[%emt 0:00:15][%mdl 4096] Endgame KRR-KRR} 24. Rd7 {[%emt 0:00:05]} Rac8 {[%emt 0:00:16]} 25. Rgd1 {[%emt 0:01:01]} (25. Rc1 $16) 25... Rhe8 $14 {[%emt 0:01:44]} 26. R1d5 {[%emt 0:02:10]} Re6 {[%emt 0:04:24]} 27. Rh7 {[%emt 0:01:49][%cal Oh3h4]} h5 {[%emt 0:02:42]} (27... Rc6 $14) 28. h4 {[%emt 0:01:35]} Rb6 {[%emt 0:03:52]} (28... Rd6 $14) 29. b3 $16 {[%emt 0:00:28]} Rd6 {[%emt 0:00:32] [#]} 30. Rxc7 $3 {[%emt 0:00:55][%cal Rd5d6][%mdl 512]} Rxd5 {[%emt 0:00:56]} 31. Rxc8 {[%emt 0:00:11] KR-KR} Ra5 {[%emt 0:00:43] This costs Black the game.} (31... Rd7 $16 32. Rc5 Re7) 32. a4 $18 {[%emt 0:01:04]} g5 {[%emt 0:00:44]} 33. Rh8 {[%emt 0:04:05]} gxh4 {[%emt 0:01:34]} 34. Rxh5 {[%emt 0:00:06]} b5 $2 {[%emt 0:00:23]} (34... Rc5 35. Kd3 (35. Rxh4 Rc2+ 36. Ke1 Kg6 $18) 35... Kg6 36. Rxh4 b5) 35. f4 {[%emt 0:04:35]} (35. Rxh4 bxa4 36. bxa4 (36. Rh6+ Kg5 $11) 36... Rxa4 $14) 35... bxa4 {[%emt 0:02:50]} 36. bxa4 {[%emt 0:00:18]} (36. Rxh4 axb3 37. fxe5+ Kg5 $11) 36... Rxa4 {[%emt 0:01:26] [#]} 37. Kf3 {[%emt 0:01:53]} (37. Rxh4 Rxe4+ 38. Kf3 Rxf4+ 39. Rxf4+ exf4 40. Kxf4 a5 $11) (37. Rxe5 Ra3 $14) (37. fxe5+ Kg6 38. Rxh4 Kg5 $11) 37... Ra3+ {[%emt 0:01:40]} 38. Kg4 {[%emt 0:00:24]} h3 {[%emt 0:00:33]} (38... exf4 $142 39. f3 (39. Kxh4 Rf3 $11) (39. Kxf4 Rh3 $16) 39... Ra2 40. Rxh4 (40. Kxh4 {leads to mate.} Rh2+ 41. Kg4 Rxh5 42. Kxf4 a5 43. Kg4 Rg5+ 44. Kf4 a4 45. Ke3 a3 46. Kd3 a2 47. f4 Rg8 48. Ke3 a1=Q 49. e5+ Kf5 50. e6 Qc3+ 51. Kf2 Kxf4 52. Kf1 Qe3 53. e7 Rg1#) 40... Ke5) 39. f3 {[%emt 0:02:21]} exf4 {[%emt 0:03:02]} 40. Kxf4 {[%emt 0:00:37]} ({Stronger than} 40. Kxh3 Rxf3+ 41. Kg4 Rf1 $11) 40... a5 {[%emt 0:00:19]} 41. Rxh3 {[%emt 0:30:29]} a4 {[%emt 0:30:12]} 42. Rh6+ {[%emt 0:00:17]} Ke7 {[%emt 0:01:21]} 43. Ra6 {[%emt 0:01:40]} Ra1 {[%emt 0:00:07]} 44. Ke5 {[%emt 0:00:30]} a3 {[%emt 0:00:06]} 45. Ra7+ {[%emt 0:00:38] White mates.} Kd8 {[%emt 0:00:39]} 46. f4 {[%emt 0:00:19][%cal Bf3f4,Bf4f5][%mdl 32]} a2 {[%emt 0:00:27]} 47. f5 {[%emt 0:00:15]} Kc8 {[%emt 0:00:44]} 48. f6 {[%emt 0:01:29]} Kb8 {[%emt 0:00:50]} 49. f7 {[%emt 0:03:08]} Rf1 {[%emt 0:00:48]} 50. Rxa2 {[%emt 0:00:10]} Rxf7 {[%emt 0:00:07]} 51. Rc2 {[%emt 0:00:29]} Rf1 {[%emt 0:02:56]} 52. Ke6 {[%emt 0:00:29]} Rd1 {[%emt 0:00:34]} 53. e5 {[%emt 0:00:07][%cal Be4e5,Be5e6,Be6e7][%mdl 32]} Re1 {[%emt 0:00:11]} 54. Kd6 {[%emt 0:00:18]} Rf1 {[%emt 0:00:10]} 55. e6 {[%emt 0:00:12]} Rd1+ {[%emt 0:00:17]} 56. Ke7 {[%emt 0:00:10]} Rf1 {[%emt 0:00:13]} 57. Kd7 {[%emt 0:00:17]} Rd1+ {[%emt 0:00:22]} 58. Ke8 {[%emt 0:00:07]} Re1 {[%emt 0:00:06]} 59. e7 {[%emt 0:00:13]} Rd1 {[%emt 0:00:11]} 60. Rf2 {[%emt 0:00:48]} Kc7 {[%emt 0:00:09] Weighted Error Value: White=0.06 (flawless) /Black=0.41} 1-0